[Event "Titled Tuesday Blitz May 2 Late 2023"]
[White "Nazari, Arad"]
[Black "Bluebaum, Matthias"]
[WhiteFideId "12577324"]
[BlackFideId "24651516"]
[WhiteElo "2242"]
[BlackElo "2638"]
[Result "0-1"]
[Round "06"]
[TimeControl "180+2"]
[Date "2023.05.02"]
[WhiteClock "0:00:03"]
[BlackClock "0:00:15"]

1. e4 {[%clk 0:03:00]}  e6 {[%clk 0:03:00]} 2. d4 {[%clk 0:02:59]}  d5 {[%clk 0:03:01]} 3. e5 {[%clk 0:02:59]}  c5 {[%clk 0:03:00]} 4. c3 {[%clk 0:03:00]}  Nc6 {[%clk 0:03:01]} 5. Nf3 {[%clk 0:03:00]}  Nge7 {[%clk 0:03:01]} 6. Na3 {[%clk 0:02:51]}  Bd7 {[%clk 0:03:01]} 7. Be2 {[%clk 0:02:44]}  cxd4 {[%clk 0:02:59]} 8. cxd4 {[%clk 0:02:44]}  Nf5 {[%clk 0:02:59]} 9. Nc2 {[%clk 0:02:42]}  Be7 {[%clk 0:03:00]} 10. O-O {[%clk 0:02:37]}  O-O {[%clk 0:03:00]} 11. Bd3 {[%clk 0:02:37]}  f6 {[%clk 0:03:00]} 12. Bf4 {[%clk 0:02:36]}  Be8 {[%clk 0:02:48]} 13. Re1 {[%clk 0:02:13]}  Bh5 {[%clk 0:02:39]} 14. Bxf5 {[%clk 0:02:05]}  exf5 {[%clk 0:02:40]} 15. Qd3 {[%clk 0:02:03]}  g5 {[%clk 0:02:30]} 16. exf6 {[%clk 0:01:58]}  Bxf6 {[%clk 0:02:31]} 17. Be5 {[%clk 0:01:58]}  f4 {[%clk 0:02:16]} 18. Bxf6 {[%clk 0:01:53]}  Qxf6 {[%clk 0:02:17]} 19. Ne5 {[%clk 0:01:54]}  Rfe8 {[%clk 0:02:04]} 20. Nxc6 {[%clk 0:01:23]}  bxc6 {[%clk 0:02:01]} 21. Rxe8+ {[%clk 0:01:10]}  Rxe8 {[%clk 0:02:02]} 22. Re1 {[%clk 0:01:10]}  Re6 {[%clk 0:01:54]} 23. Kf1 {[%clk 0:00:56]}  Bg6 {[%clk 0:01:51]} 24. Qc3 {[%clk 0:00:38]}  g4 {[%clk 0:01:35]} 25. Nb4 {[%clk 0:00:32]}  Be4 {[%clk 0:01:05]} 26. f3 {[%clk 0:00:23]}  gxf3 {[%clk 0:01:06]} 27. gxf3 {[%clk 0:00:23]}  Bf5 {[%clk 0:01:01]} 28. Rxe6 {[%clk 0:00:21]}  Bxe6 {[%clk 0:00:58]} 29. Nxc6 {[%clk 0:00:19]}  Qh4 {[%clk 0:00:58]} 30. Qd2 {[%clk 0:00:13]}  Bh3+ {[%clk 0:00:55]} 31. Ke2 {[%clk 0:00:12]}  Bd7 {[%clk 0:00:41]} 32. Ne5 {[%clk 0:00:12]}  Qxh2+ {[%clk 0:00:40]} 33. Kd1 {[%clk 0:00:13]}  Qg1+ {[%clk 0:00:27]} 34. Kc2 {[%clk 0:00:13]}  Bf5+ {[%clk 0:00:28]} 35. Kc3 {[%clk 0:00:12]}  Qe3+ {[%clk 0:00:24]} 36. Qxe3 {[%clk 0:00:06]}  fxe3 {[%clk 0:00:25]} 37. Nc6 {[%clk 0:00:03]}  Kf7 {[%clk 0:00:21]} 38. Nxa7 {[%clk 0:00:03]}  h5 {[%clk 0:00:21]} 39. Nc6 {[%clk 0:00:03]}  h4 {[%clk 0:00:21]} 40. Ne5+ {[%clk 0:00:03]}  Kf6 {[%clk 0:00:22]} 41. f4 {[%clk 0:00:03]}  h3 {[%clk 0:00:21]} 42. Nf3 {[%clk 0:00:04]}  Be4 {[%clk 0:00:19]} 43. Nh2 {[%clk 0:00:02]}  Kf5 {[%clk 0:00:20]} 44. a4 {[%clk 0:00:02]}  Kxf4 {[%clk 0:00:21]} 45. a5 {[%clk 0:00:03]}  Kg3 {[%clk 0:00:21]} 46. a6 {[%clk 0:00:03]}  Kxh2 {[%clk 0:00:14]} 47. a7 {[%clk 0:00:04]}  Kg1 {[%clk 0:00:15]} 48. a8=Q {[%clk 0:00:04]}  h2 {[%clk 0:00:16]} 49. Qa1+ {[%clk 0:00:03]}  Kf2 {[%clk 0:00:15]} 0-1


[Site "https://www.chess.com"]

[Event "Titled Tuesday Blitz May 2 Late 2023"]
[White "Makridis, Dimitrios"]
[Black "Maze, Sebastien"]
[WhiteFideId "25864475"]
[BlackFideId "613762"]
[WhiteElo "2277"]
[BlackElo "2462"]
[Result "1-0"]
[Round "06"]
[TimeControl "180+2"]
[Date "2023.05.02"]
[WhiteClock "0:00:08"]
[BlackClock "0:00:02"]

1. e4 {[%clk 0:03:00]}  c5 {[%clk 0:02:58]} 2. Nf3 {[%clk 0:02:53]}  Nc6 {[%clk 0:02:54]} 3. Bb5 {[%clk 0:02:47]}  e5 {[%clk 0:02:46]} 4. O-O {[%clk 0:02:40]}  Bd6 {[%clk 0:02:46]} 5. c3 {[%clk 0:02:39]}  Nge7 {[%clk 0:02:45]} 6. d4 {[%clk 0:02:39]}  O-O {[%clk 0:02:41]} 7. dxe5 {[%clk 0:02:34]}  Bxe5 {[%clk 0:02:38]} 8. Nxe5 {[%clk 0:02:33]}  Nxe5 {[%clk 0:02:38]} 9. f4 {[%clk 0:02:34]}  N5c6 {[%clk 0:02:38]} 10. Bd3 {[%clk 0:02:33]}  d5 {[%clk 0:02:38]} 11. e5 {[%clk 0:02:33]}  Bf5 {[%clk 0:02:31]} 12. Na3 {[%clk 0:02:20]}  Qd7 {[%clk 0:02:25]} 13. Nc2 {[%clk 0:02:18]}  Rad8 {[%clk 0:02:18]} 14. Kh1 {[%clk 0:02:13]}  d4 {[%clk 0:02:03]} 15. Bxf5 {[%clk 0:01:49]}  Nxf5 {[%clk 0:01:53]} 16. cxd4 {[%clk 0:01:48]}  Nfxd4 {[%clk 0:01:44]} 17. Be3 {[%clk 0:01:43]}  b6 {[%clk 0:01:40]} 18. Nxd4 {[%clk 0:01:39]}  cxd4 {[%clk 0:01:39]} 19. Bd2 {[%clk 0:01:39]}  Qd5 {[%clk 0:01:22]} 20. Rc1 {[%clk 0:01:38]}  Rd7 {[%clk 0:01:16]} 21. Qh5 {[%clk 0:01:23]}  Rfd8 {[%clk 0:00:54]} 22. f5 {[%clk 0:01:02]}  Nxe5 {[%clk 0:00:50]} 23. f6 {[%clk 0:01:02]}  Ng6 {[%clk 0:00:47]} 24. Rf5 {[%clk 0:01:01]}  Qxa2 {[%clk 0:00:31]} 25. fxg7 {[%clk 0:00:58]}  Qxb2 {[%clk 0:00:30]} 26. Qh6 {[%clk 0:00:56]}  d3 {[%clk 0:00:26]} 27. h3 {[%clk 0:00:09]}  a5 {[%clk 0:00:24]} 28. Bc3 {[%clk 0:00:08]}  Qxc1+ {[%clk 0:00:07]} 29. Qxc1 {[%clk 0:00:07]}  Rc8 {[%clk 0:00:07]} 30. Qh6 {[%clk 0:00:05]}  f6 {[%clk 0:00:07]} 31. Bxf6 {[%clk 0:00:04]}  d2 {[%clk 0:00:06]} 32. Rh5 {[%clk 0:00:04]}  d1=Q+ {[%clk 0:00:06]} 33. Kh2 {[%clk 0:00:05]}  Qd6+ {[%clk 0:00:06]} 34. Be5 {[%clk 0:00:05]}  Qxe5+ {[%clk 0:00:05]} 35. Rxe5 {[%clk 0:00:06]}  Nxe5 {[%clk 0:00:04]} 36. Qe6+ {[%clk 0:00:06]}  Kxg7 {[%clk 0:00:04]} 37. Qxe5+ {[%clk 0:00:07]}  Kf7 {[%clk 0:00:05]} 38. Qf5+ {[%clk 0:00:08]}  Ke7 {[%clk 0:00:05]} 39. Qxh7+ {[%clk 0:00:08]}  Kd6 {[%clk 0:00:06]} 40. Qd3+ {[%clk 0:00:08]}  Kc7 {[%clk 0:00:06]} 41. Qc4+ {[%clk 0:00:09]}  Kb7 {[%clk 0:00:06]} 42. Qe4+ {[%clk 0:00:08]}  Rc6 {[%clk 0:00:06]} 43. h4 {[%clk 0:00:08]}  b5 {[%clk 0:00:06]} 44. h5 {[%clk 0:00:08]}  Rd6 {[%clk 0:00:07]} 45. Qe7+ {[%clk 0:00:08]}  Kb6 {[%clk 0:00:06]} 46. Qe3+ {[%clk 0:00:08]}  Ka6 {[%clk 0:00:06]} 47. g4 {[%clk 0:00:08]}  b4 {[%clk 0:00:06]} 48. Qe2+ {[%clk 0:00:08]}  Kb6 {[%clk 0:00:06]} 49. g5 {[%clk 0:00:08]}  a4 {[%clk 0:00:06]} 50. Qe3+ {[%clk 0:00:08]}  Kb5 {[%clk 0:00:06]} 51. g6 {[%clk 0:00:08]}  b3 {[%clk 0:00:05]} 52. g7 {[%clk 0:00:08]}  Rd8 {[%clk 0:00:04]} 53. h6 {[%clk 0:00:07]}  b2 {[%clk 0:00:03]} 54. Qe2+ {[%clk 0:00:07]}  Ka5 {[%clk 0:00:03]} 55. Qe5+ {[%clk 0:00:07]}  Ka6 {[%clk 0:00:02]} 56. Qe2+ {[%clk 0:00:03]}  Ka7 {[%clk 0:00:02]} 57. Qf2+ {[%clk 0:00:03]}  Kb7 {[%clk 0:00:02]} 58. Qxb2+ {[%clk 0:00:02]}  Rb6 {[%clk 0:00:02]} 59. Qg2+ {[%clk 0:00:02]}  Ka6 {[%clk 0:00:02]} 60. g8=Q {[%clk 0:00:03]}  Rxh6+ {[%clk 0:00:01]} 61. Kg1 {[%clk 0:00:04]}  Rxg8 {[%clk 0:00:02]} 62. Qxg8 {[%clk 0:00:04]}  Rb6 {[%clk 0:00:02]} 63. Qc4+ {[%clk 0:00:04]}  Ka5 {[%clk 0:00:03]} 64. Kf2 {[%clk 0:00:05]}  Rb5 {[%clk 0:00:03]} 65. Qc7+ {[%clk 0:00:05]}  Kb4 {[%clk 0:00:03]} 66. Ke3 {[%clk 0:00:06]}  a3 {[%clk 0:00:03]} 67. Kd3 {[%clk 0:00:06]}  Ka4 {[%clk 0:00:04]} 68. Qa7+ {[%clk 0:00:06]}  Kb4 {[%clk 0:00:04]} 69. Qe7+ {[%clk 0:00:06]}  Ka4 {[%clk 0:00:04]} 70. Kc4 {[%clk 0:00:07]}  Rb6 {[%clk 0:00:03]} 71. Qa7+ {[%clk 0:00:07]}  Ra6 {[%clk 0:00:02]} 72. Qxa6# {[%clk 0:00:08]} 1-0


[Site "https://www.chess.com"]

[Event "Titled Tuesday Blitz May 2 Late 2023"]
[White "Samsonkin, Artiom"]
[Black "Kourkoulos-Arditis, Stamatis"]
[WhiteFideId "13503111"]
[BlackFideId "4221990"]
[WhiteElo "2524"]
[BlackElo "2400"]
[Result "0-1"]
[Round "06"]
[TimeControl "180+2"]
[Date "2023.05.02"]
[WhiteClock "0:00:02"]
[BlackClock "0:00:49"]

1. e4 {[%clk 0:03:00]}  Nf6 {[%clk 0:02:57]} 2. e5 {[%clk 0:03:01]}  Nd5 {[%clk 0:02:57]} 3. d4 {[%clk 0:03:02]}  d6 {[%clk 0:02:57]} 4. c4 {[%clk 0:03:02]}  Nb6 {[%clk 0:02:57]} 5. f4 {[%clk 0:03:03]}  Bf5 {[%clk 0:02:57]} 6. Nc3 {[%clk 0:03:02]}  e6 {[%clk 0:02:56]} 7. Be3 {[%clk 0:02:57]}  dxe5 {[%clk 0:02:55]} 8. fxe5 {[%clk 0:02:58]}  Nc6 {[%clk 0:02:51]} 9. Nf3 {[%clk 0:02:57]}  Bg4 {[%clk 0:02:51]} 10. Be2 {[%clk 0:02:24]}  Bxf3 {[%clk 0:02:51]} 11. gxf3 {[%clk 0:02:25]}  Qh4+ {[%clk 0:02:51]} 12. Bf2 {[%clk 0:02:23]}  Qf4 {[%clk 0:02:51]} 13. Qc1 {[%clk 0:01:43]}  Qxc1+ {[%clk 0:02:50]} 14. Rxc1 {[%clk 0:01:44]}  O-O-O {[%clk 0:02:49]} 15. Rd1 {[%clk 0:01:43]}  g6 {[%clk 0:02:28]} 16. O-O {[%clk 0:01:40]}  Bh6 {[%clk 0:02:14]} 17. Ne4 {[%clk 0:01:12]}  Nb4 {[%clk 0:02:08]} 18. a3 {[%clk 0:01:00]}  Nc2 {[%clk 0:02:08]} 19. Rd3 {[%clk 0:00:33]}  Nxc4 {[%clk 0:02:04]} 20. Rc3 {[%clk 0:00:33]}  N4e3 {[%clk 0:01:50]} 21. Nd6+ {[%clk 0:00:31]}  Rxd6 {[%clk 0:01:22]} 22. exd6 {[%clk 0:00:31]}  c6 {[%clk 0:01:23]} 23. Bd3 {[%clk 0:00:07]}  Nxd4 {[%clk 0:01:13]} 24. d7+ {[%clk 0:00:05]}  Kxd7 {[%clk 0:01:08]} 25. Re1 {[%clk 0:00:05]}  Nxf3+ {[%clk 0:01:07]} 26. Kh1 {[%clk 0:00:05]}  Nxe1 {[%clk 0:01:08]} 27. Bxe1 {[%clk 0:00:06]}  Nd5 {[%clk 0:01:08]} 28. Rb3 {[%clk 0:00:06]}  Kc7 {[%clk 0:01:05]} 29. Bg3+ {[%clk 0:00:05]}  Bf4 {[%clk 0:01:06]} 30. Bf2 {[%clk 0:00:05]}  a6 {[%clk 0:01:01]} 31. a4 {[%clk 0:00:04]}  Bd6 {[%clk 0:01:00]} 32. a5 {[%clk 0:00:04]}  Bb4 {[%clk 0:00:59]} 33. Bb6+ {[%clk 0:00:03]}  Kc8 {[%clk 0:00:56]} 34. Bc4 {[%clk 0:00:03]}  Bd6 {[%clk 0:00:55]} 35. Bd4 {[%clk 0:00:03]}  Rd8 {[%clk 0:00:52]} 36. Bf2 {[%clk 0:00:03]}  Bc7 {[%clk 0:00:52]} 37. Be1 {[%clk 0:00:02]}  Nf4 {[%clk 0:00:49]} 0-1


[Site "https://www.chess.com"]

[Event "Titled Tuesday Blitz May 2 Late 2023"]
[White "Haszon, David"]
[Black "Averjanov, Alexey"]
[WhiteFideId "733610"]
[BlackFideId "14109867"]
[WhiteElo "2210"]
[BlackElo "2399"]
[Result "1-0"]
[Round "06"]
[TimeControl "180+2"]
[Date "2023.05.02"]
[WhiteClock "0:00:50"]
[BlackClock "0:01:38"]

1. d4 {[%clk 0:03:00]}  d5 {[%clk 0:02:59]} 2. Bf4 {[%clk 0:03:01]}  Nf6 {[%clk 0:02:59]} 3. e3 {[%clk 0:03:01]}  e6 {[%clk 0:02:59]} 4. Nf3 {[%clk 0:03:01]}  c5 {[%clk 0:02:59]} 5. c3 {[%clk 0:02:56]}  Bd6 {[%clk 0:02:59]} 6. Bg3 {[%clk 0:02:54]}  Qc7 {[%clk 0:02:59]} 7. Nbd2 {[%clk 0:02:47]}  Nbd7 {[%clk 0:02:57]} 8. dxc5 {[%clk 0:02:46]}  Nxc5 {[%clk 0:02:54]} 9. Rc1 {[%clk 0:02:38]}  O-O {[%clk 0:02:51]} 10. c4 {[%clk 0:02:28]}  Bxg3 {[%clk 0:02:42]} 11. hxg3 {[%clk 0:02:28]}  Qe7 {[%clk 0:02:38]} 12. cxd5 {[%clk 0:02:20]}  Nxd5 {[%clk 0:02:37]} 13. Qc2 {[%clk 0:02:17]}  h6 {[%clk 0:02:30]} 14. Qxc5 {[%clk 0:02:16]}  Qd8 {[%clk 0:02:28]} 15. e4 {[%clk 0:02:07]}  Nf6 {[%clk 0:02:23]} 16. Be2 {[%clk 0:01:52]}  b6 {[%clk 0:02:16]} 17. Qc7 {[%clk 0:01:47]}  Qe8 {[%clk 0:02:16]} 18. O-O {[%clk 0:01:36]}  Bd7 {[%clk 0:02:16]} 19. Rfd1 {[%clk 0:01:34]}  Qe7 {[%clk 0:02:08]} 20. Ne5 {[%clk 0:01:29]}  Rfc8 {[%clk 0:02:07]} 21. Qb7 {[%clk 0:01:24]}  Rcb8 {[%clk 0:02:03]} 22. Qa6 {[%clk 0:01:16]}  Be8 {[%clk 0:01:58]} 23. Qa3 {[%clk 0:01:06]}  Qd8 {[%clk 0:01:44]} 24. Nb3 {[%clk 0:00:54]}  Bd7 {[%clk 0:01:39]} 25. Nxd7 {[%clk 0:00:53]}  Nxd7 {[%clk 0:01:39]} 26. Bb5 {[%clk 0:00:52]}  Rb7 {[%clk 0:01:38]} 27. Bc6 {[%clk 0:00:51]}  Rab8 {[%clk 0:01:38]} 28. Bxb7 {[%clk 0:00:51]}  Rxb7 {[%clk 0:01:38]} 29. Qd6 {[%clk 0:00:50]} 1-0


[Site "https://www.chess.com"]

[Event "Titled Tuesday Blitz May 2 Late 2023"]
[White "Janaszak, Dawid"]
[Black "Grigoriants, Sergey"]
[WhiteFideId "1119206"]
[BlackFideId "4130804"]
[WhiteElo "2220"]
[BlackElo "2502"]
[Result "0-1"]
[Round "06"]
[TimeControl "180+2"]
[Date "2023.05.02"]
[WhiteClock "0:00:08"]
[BlackClock "0:00:16"]

1. e4 {[%clk 0:03:00]}  c5 {[%clk 0:02:56]} 2. Nc3 {[%clk 0:03:00]}  e6 {[%clk 0:02:55]} 3. Nge2 {[%clk 0:02:58]}  Nc6 {[%clk 0:02:54]} 4. g3 {[%clk 0:02:58]}  a6 {[%clk 0:02:52]} 5. Bg2 {[%clk 0:02:57]}  b5 {[%clk 0:02:52]} 6. d4 {[%clk 0:02:50]}  cxd4 {[%clk 0:02:52]} 7. Nxd4 {[%clk 0:02:51]}  Bb7 {[%clk 0:02:52]} 8. O-O {[%clk 0:02:50]}  Rc8 {[%clk 0:02:34]} 9. Bf4 {[%clk 0:02:36]}  d6 {[%clk 0:02:19]} 10. Nde2 {[%clk 0:02:30]}  Nf6 {[%clk 0:02:15]} 11. Qd2 {[%clk 0:02:26]}  Ne5 {[%clk 0:02:04]} 12. a3 {[%clk 0:01:39]}  Nc4 {[%clk 0:01:48]} 13. Qc1 {[%clk 0:01:39]}  Qc7 {[%clk 0:01:49]} 14. Rd1 {[%clk 0:01:25]}  Be7 {[%clk 0:01:47]} 15. b3 {[%clk 0:01:12]}  Ne5 {[%clk 0:01:44]} 16. Qd2 {[%clk 0:01:05]}  O-O {[%clk 0:01:42]} 17. Rac1 {[%clk 0:01:04]}  Rfd8 {[%clk 0:01:42]} 18. h3 {[%clk 0:00:51]}  h6 {[%clk 0:01:36]} 19. Qe1 {[%clk 0:00:45]}  Bc6 {[%clk 0:00:55]} 20. Nd4 {[%clk 0:00:40]}  Be8 {[%clk 0:00:54]} 21. Nce2 {[%clk 0:00:36]}  Ng6 {[%clk 0:00:51]} 22. Be3 {[%clk 0:00:34]}  d5 {[%clk 0:00:52]} 23. exd5 {[%clk 0:00:30]}  Nxd5 {[%clk 0:00:53]} 24. Bd2 {[%clk 0:00:29]}  Bxa3 {[%clk 0:00:45]} 25. Ra1 {[%clk 0:00:29]}  b4 {[%clk 0:00:38]} 26. Be4 {[%clk 0:00:29]}  Nge7 {[%clk 0:00:33]} 27. Bd3 {[%clk 0:00:27]}  a5 {[%clk 0:00:31]} 28. Nf4 {[%clk 0:00:27]}  Nc3 {[%clk 0:00:24]} 29. Bxc3 {[%clk 0:00:24]}  Qxc3 {[%clk 0:00:24]} 30. Qe4 {[%clk 0:00:23]}  Rxd4 {[%clk 0:00:22]} 31. Qh7+ {[%clk 0:00:21]}  Kf8 {[%clk 0:00:23]} 32. Qh8+ {[%clk 0:00:14]}  Ng8 {[%clk 0:00:23]} 33. Bh7 {[%clk 0:00:14]}  Rcd8 {[%clk 0:00:18]} 34. Qxg8+ {[%clk 0:00:14]}  Ke7 {[%clk 0:00:18]} 35. Ng6+ {[%clk 0:00:13]}  Kf6 {[%clk 0:00:17]} 36. Rxd4 {[%clk 0:00:08]}  Qxa1+ {[%clk 0:00:17]} 37. Kh2 {[%clk 0:00:08]}  Qxd4 {[%clk 0:00:17]} 38. Nf4 {[%clk 0:00:07]}  Qxf2+ {[%clk 0:00:17]} 39. Ng2 {[%clk 0:00:08]}  Qxg2+ {[%clk 0:00:16]} 40. Kxg2 {[%clk 0:00:08]}  Bc6+ {[%clk 0:00:16]} 0-1


[Site "https://www.chess.com"]

[Event "Titled Tuesday Blitz May 2 Late 2023"]
[White "Remizov, Yaroslav"]
[Black "Haydon, David L"]
[WhiteFideId "34134015"]
[BlackFideId "415405"]
[WhiteElo "2412"]
[BlackElo "2326"]
[Result "1-0"]
[Round "06"]
[TimeControl "180+2"]
[Date "2023.05.02"]
[WhiteClock "0:00:08"]
[BlackClock "0:00:17"]

1. e4 {[%clk 0:03:00]}  c6 {[%clk 0:02:59]} 2. Nc3 {[%clk 0:03:00]}  d5 {[%clk 0:02:53]} 3. d4 {[%clk 0:03:00]}  dxe4 {[%clk 0:02:50]} 4. Nxe4 {[%clk 0:03:01]}  Bf5 {[%clk 0:02:48]} 5. Ng3 {[%clk 0:03:01]}  Bg6 {[%clk 0:02:48]} 6. Bc4 {[%clk 0:03:02]}  e6 {[%clk 0:02:48]} 7. N1e2 {[%clk 0:03:02]}  Bd6 {[%clk 0:02:48]} 8. O-O {[%clk 0:03:03]}  Qc7 {[%clk 0:02:48]} 9. c3 {[%clk 0:03:03]}  Nf6 {[%clk 0:02:48]} 10. f4 {[%clk 0:03:03]}  O-O {[%clk 0:02:47]} 11. f5 {[%clk 0:03:04]}  exf5 {[%clk 0:02:46]} 12. Nxf5 {[%clk 0:03:05]}  Bxh2+ {[%clk 0:02:45]} 13. Kh1 {[%clk 0:03:05]}  Re8 {[%clk 0:02:31]} 14. Nh6+ {[%clk 0:02:44]}  Kf8 {[%clk 0:02:26]} 15. Rxf6 {[%clk 0:02:28]}  gxf6 {[%clk 0:02:12]} 16. Ng4 {[%clk 0:02:29]}  Bd6 {[%clk 0:02:06]} 17. Nxf6 {[%clk 0:02:18]}  Nd7 {[%clk 0:01:54]} 18. Bh6+ {[%clk 0:02:14]}  Ke7 {[%clk 0:01:53]} 19. Nxe8 {[%clk 0:02:12]}  Rxe8 {[%clk 0:01:53]} 20. Qd2 {[%clk 0:01:58]}  Kd8 {[%clk 0:01:52]} 21. Nf4 {[%clk 0:01:59]}  Nb6 {[%clk 0:01:45]} 22. Bb3 {[%clk 0:01:53]}  Kc8 {[%clk 0:01:43]} 23. Rf1 {[%clk 0:01:49]}  Be4 {[%clk 0:01:34]} 24. Nh5 {[%clk 0:01:40]}  f5 {[%clk 0:01:33]} 25. Ng7 {[%clk 0:01:02]}  Qe7 {[%clk 0:01:20]} 26. Qg5 {[%clk 0:00:58]}  Qxg5 {[%clk 0:01:15]} 27. Bxg5 {[%clk 0:00:59]}  Rf8 {[%clk 0:01:14]} 28. Nxf5 {[%clk 0:00:55]}  Kc7 {[%clk 0:01:04]} 29. Be6 {[%clk 0:00:44]}  Na4 {[%clk 0:00:52]} 30. Rf2 {[%clk 0:00:26]}  Nxb2 {[%clk 0:00:43]} 31. Nxd6 {[%clk 0:00:21]}  Rxf2 {[%clk 0:00:36]} 32. Nxe4 {[%clk 0:00:21]}  Re2 {[%clk 0:00:27]} 33. Bf5 {[%clk 0:00:20]}  Nd3 {[%clk 0:00:23]} 34. Ng3 {[%clk 0:00:18]}  Re1+ {[%clk 0:00:20]} 35. Kh2 {[%clk 0:00:18]}  Nf2 {[%clk 0:00:20]} 36. Bxh7 {[%clk 0:00:09]}  Ra1 {[%clk 0:00:19]} 37. Bg8 {[%clk 0:00:07]}  Ng4+ {[%clk 0:00:16]} 38. Kh3 {[%clk 0:00:08]}  Nf2+ {[%clk 0:00:17]} 39. Kh4 {[%clk 0:00:09]}  Re1 {[%clk 0:00:16]} 40. Bf4+ {[%clk 0:00:09]}  Kd7 {[%clk 0:00:15]} 41. Bh7 {[%clk 0:00:06]}  Re8 {[%clk 0:00:13]} 42. Bf5+ {[%clk 0:00:06]}  Kd8 {[%clk 0:00:13]} 43. Nh5 {[%clk 0:00:06]}  Rg8 {[%clk 0:00:12]} 44. g4 {[%clk 0:00:06]}  Nxg4 {[%clk 0:00:11]} 45. Bxg4 {[%clk 0:00:07]}  Rf8 {[%clk 0:00:11]} 46. Nf6 {[%clk 0:00:06]}  Re8 {[%clk 0:00:12]} 47. Nxe8 {[%clk 0:00:06]}  Kxe8 {[%clk 0:00:12]} 48. Kg5 {[%clk 0:00:07]}  b5 {[%clk 0:00:13]} 49. Kf5 {[%clk 0:00:07]}  b4 {[%clk 0:00:14]} 50. cxb4 {[%clk 0:00:06]}  a5 {[%clk 0:00:14]} 51. bxa5 {[%clk 0:00:07]}  Kd7 {[%clk 0:00:15]} 52. Ke5+ {[%clk 0:00:07]}  Kd8 {[%clk 0:00:15]} 53. Kd6 {[%clk 0:00:07]}  c5 {[%clk 0:00:16]} 54. Bd7 {[%clk 0:00:08]}  cxd4 {[%clk 0:00:16]} 55. a6 {[%clk 0:00:08]}  d3 {[%clk 0:00:16]} 56. a7 {[%clk 0:00:09]}  d2 {[%clk 0:00:17]} 57. Bg5# {[%clk 0:00:08]} 1-0


[Site "https://www.chess.com"]

[Event "Titled Tuesday Blitz May 2 Late 2023"]
[White "Maksimovic, Bojan"]
[Black "Danielyan, Vahe"]
[WhiteFideId "14408120"]
[BlackFideId "13304828"]
[WhiteElo "2468"]
[BlackElo "2423"]
[Result "1-0"]
[Round "06"]
[TimeControl "180+2"]
[Date "2023.05.02"]
[WhiteClock "0:01:28"]
[BlackClock "0:00:02"]

1. Nf3 {[%clk 0:03:00]}  d5 {[%clk 0:03:00]} 2. g3 {[%clk 0:03:00]}  Nc6 {[%clk 0:03:00]} 3. Bg2 {[%clk 0:03:01]}  e5 {[%clk 0:03:00]} 4. d4 {[%clk 0:03:02]}  e4 {[%clk 0:03:01]} 5. Ne5 {[%clk 0:03:03]}  Bd6 {[%clk 0:03:01]} 6. Nxc6 {[%clk 0:03:03]}  bxc6 {[%clk 0:03:01]} 7. c4 {[%clk 0:03:04]}  Nf6 {[%clk 0:03:01]} 8. Nc3 {[%clk 0:03:04]}  Be6 {[%clk 0:02:59]} 9. c5 {[%clk 0:03:02]}  Be7 {[%clk 0:03:00]} 10. Qa4 {[%clk 0:03:03]}  Qd7 {[%clk 0:02:59]} 11. f3 {[%clk 0:03:01]}  exf3 {[%clk 0:02:59]} 12. exf3 {[%clk 0:03:02]}  O-O {[%clk 0:02:57]} 13. O-O {[%clk 0:03:03]}  a5 {[%clk 0:02:49]} 14. Be3 {[%clk 0:02:56]}  Rfb8 {[%clk 0:02:49]} 15. Qc2 {[%clk 0:02:57]}  Bf5 {[%clk 0:02:49]} 16. Qd2 {[%clk 0:02:57]}  a4 {[%clk 0:02:49]} 17. a3 {[%clk 0:02:56]}  Rb3 {[%clk 0:02:49]} 18. Rfc1 {[%clk 0:02:52]}  Rab8 {[%clk 0:02:49]} 19. Nxa4 {[%clk 0:02:52]}  Qc8 {[%clk 0:02:43]} 20. Bf1 {[%clk 0:02:41]}  h5 {[%clk 0:02:40]} 21. Rc3 {[%clk 0:02:39]}  h4 {[%clk 0:02:35]} 22. Rxb3 {[%clk 0:02:33]}  Rxb3 {[%clk 0:02:36]} 23. Nc3 {[%clk 0:02:34]}  hxg3 {[%clk 0:02:31]} 24. hxg3 {[%clk 0:02:34]}  Qb8 {[%clk 0:02:32]} 25. Nd1 {[%clk 0:02:32]}  Bg6 {[%clk 0:01:56]} 26. a4 {[%clk 0:02:30]}  Nd7 {[%clk 0:01:53]} 27. a5 {[%clk 0:02:26]}  Qa7 {[%clk 0:01:50]} 28. a6 {[%clk 0:02:26]}  Bf6 {[%clk 0:01:49]} 29. Ra3 {[%clk 0:02:23]}  Rb8 {[%clk 0:01:36]} 30. b4 {[%clk 0:02:23]}  Re8 {[%clk 0:01:33]} 31. Bf2 {[%clk 0:02:23]}  Bh5 {[%clk 0:01:30]} 32. Nc3 {[%clk 0:02:06]}  Bxf3 {[%clk 0:01:28]} 33. b5 {[%clk 0:02:07]}  Qa8 {[%clk 0:00:24]} 34. a7 {[%clk 0:01:48]}  Rd8 {[%clk 0:00:13]} 35. bxc6 {[%clk 0:01:44]}  Nxc5 {[%clk 0:00:13]} 36. Nb5 {[%clk 0:01:36]}  Ne4 {[%clk 0:00:07]} 37. Qf4 {[%clk 0:01:37]}  Qxc6 {[%clk 0:00:04]} 38. Qxf3 {[%clk 0:01:32]}  Ng5 {[%clk 0:00:03]} 39. Qf5 {[%clk 0:01:31]}  g6 {[%clk 0:00:02]} 40. a8=Q {[%clk 0:01:27]}  Rxa8 {[%clk 0:00:02]} 41. Rxa8+ {[%clk 0:01:28]} 1-0


[Site "https://www.chess.com"]